[Event "Titled Tuesday Blitz June 8 2021"]
[White "Concio, Michael Jr."]
[Black "Samadov, Read"]
[WhiteFideId "5217873"]
[BlackFideId "13417444"]
[WhiteElo "2626"]
[BlackElo "2788"]
[Result "1/2-1/2"]
[Round "07"]
[TimeControl "180+1"]
[Date "2021.06.08"]
[WhiteClock "0:00:02"]
[BlackClock "0:00:05"]

1. e4 {[%clk 0:03:00]}  e6 {[%clk 0:02:59]} 2. d3 {[%clk 0:02:57]}  c5 {[%clk 0:02:58]} 3. c4 {[%clk 0:02:56]}  Nc6 {[%clk 0:02:58]} 4. Nc3 {[%clk 0:02:56]}  g6 {[%clk 0:02:58]} 5. g3 {[%clk 0:02:57]}  Bg7 {[%clk 0:02:58]} 6. Bg2 {[%clk 0:02:56]}  Nge7 {[%clk 0:02:59]} 7. Nge2 {[%clk 0:02:56]}  O-O {[%clk 0:02:59]} 8. O-O {[%clk 0:02:56]}  d6 {[%clk 0:02:59]} 9. a3 {[%clk 0:02:56]}  Rb8 {[%clk 0:02:57]} 10. Rb1 {[%clk 0:02:56]}  a6 {[%clk 0:02:56]} 11. b4 {[%clk 0:02:56]}  cxb4 {[%clk 0:02:56]} 12. axb4 {[%clk 0:02:57]}  b5 {[%clk 0:02:56]} 13. cxb5 {[%clk 0:02:58]}  axb5 {[%clk 0:02:56]} 14. Be3 {[%clk 0:02:59]}  e5 {[%clk 0:02:49]} 15. d4 {[%clk 0:02:44]}  exd4 {[%clk 0:02:25]} 16. Nxd4 {[%clk 0:02:44]}  Nxd4 {[%clk 0:02:21]} 17. Bxd4 {[%clk 0:02:44]}  Nc6 {[%clk 0:02:12]} 18. Bxg7 {[%clk 0:02:42]}  Kxg7 {[%clk 0:02:11]} 19. Qd5 {[%clk 0:02:13]}  Ne5 {[%clk 0:02:05]} 20. Rfd1 {[%clk 0:01:58]}  Qf6 {[%clk 0:01:37]} 21. Qxd6 {[%clk 0:01:48]}  Be6 {[%clk 0:01:14]} 22. f4 {[%clk 0:01:48]}  Nc4 {[%clk 0:01:03]} 23. Qd4 {[%clk 0:01:46]}  Rfd8 {[%clk 0:00:56]} 24. Qxf6+ {[%clk 0:01:45]}  Kxf6 {[%clk 0:00:56]} 25. Rxd8 {[%clk 0:01:42]}  Rxd8 {[%clk 0:00:54]} 26. e5+ {[%clk 0:01:42]}  Ke7 {[%clk 0:00:54]} 27. Nxb5 {[%clk 0:01:42]}  Rd2 {[%clk 0:00:54]} 28. Nc3 {[%clk 0:01:33]}  Ne3 {[%clk 0:00:51]} 29. Be4 {[%clk 0:01:33]}  Nc4 {[%clk 0:00:31]} 30. b5 {[%clk 0:01:25]}  Nb6 {[%clk 0:00:31]} 31. Ra1 {[%clk 0:01:20]}  Bc4 {[%clk 0:00:27]} 32. Ra7+ {[%clk 0:01:16]}  Kf8 {[%clk 0:00:27]} 33. Rb7 {[%clk 0:01:12]}  Nd7 {[%clk 0:00:25]} 34. Rc7 {[%clk 0:01:01]}  Be6 {[%clk 0:00:22]} 35. Bd5 {[%clk 0:00:32]}  Bh3 {[%clk 0:00:15]} 36. Bc6 {[%clk 0:00:27]}  Nb6 {[%clk 0:00:15]} 37. Ne4 {[%clk 0:00:23]}  Rg2+ {[%clk 0:00:11]} 38. Kf1 {[%clk 0:00:23]}  Rxh2+ {[%clk 0:00:10]} 39. Ke1 {[%clk 0:00:23]}  Nc4 {[%clk 0:00:09]} 40. Bd5 {[%clk 0:00:20]}  Ne3 {[%clk 0:00:06]} 41. Rxf7+ {[%clk 0:00:20]}  Ke8 {[%clk 0:00:07]} 42. Nd6+ {[%clk 0:00:18]}  Kd8 {[%clk 0:00:07]} 43. Bc6 {[%clk 0:00:13]}  Bg4 {[%clk 0:00:04]} 44. Nb7+ {[%clk 0:00:09]}  Kc8 {[%clk 0:00:04]} 45. Nd6+ {[%clk 0:00:10]}  Kd8 {[%clk 0:00:04]} 46. Nb7+ {[%clk 0:00:06]}  Kc8 {[%clk 0:00:04]} 47. Bd7+ {[%clk 0:00:06]}  Bxd7 {[%clk 0:00:03]} 48. Nd6+ {[%clk 0:00:04]}  Kd8 {[%clk 0:00:04]} 49. f5 {[%clk 0:00:02]}  gxf5 {[%clk 0:00:03]} 50. b6 {[%clk 0:00:03]}  Bc6 {[%clk 0:00:03]} 51. e6 {[%clk 0:00:03]}  Rh1+ {[%clk 0:00:02]} 52. Ke2 {[%clk 0:00:02]}  Nd5 {[%clk 0:00:02]} 53. Rxh7 {[%clk 0:00:01]}  Rb1 {[%clk 0:00:02]} 54. Rh8+ {[%clk 0:00:01]}  Ke7 {[%clk 0:00:03]} 55. Nxf5+ {[%clk 0:00:02]}  Kxe6 {[%clk 0:00:03]} 56. Nd4+ {[%clk 0:00:02]}  Kd6 {[%clk 0:00:04]} 57. Rh6+ {[%clk 0:00:03]}  Kc5 {[%clk 0:00:04]} 58. Nxc6 {[%clk 0:00:03]}  Rb2+ {[%clk 0:00:05]} 59. Kd3 {[%clk 0:00:03]}  Rxb6 {[%clk 0:00:05]} 60. Ke4 {[%clk 0:00:02]}  Nc3+ {[%clk 0:00:05]} 61. Ke5 {[%clk 0:00:02]}  Kc4 {[%clk 0:00:04]} 62. Rh4+ {[%clk 0:00:01]}  Kc5 {[%clk 0:00:04]} 63. Ne7 {[%clk 0:00:02]}  Rb1 {[%clk 0:00:04]} 64. Nf5 {[%clk 0:00:03]}  Re1+ {[%clk 0:00:04]} 65. Kf6 {[%clk 0:00:03]}  Nd5+ {[%clk 0:00:05]} 66. Kg6 {[%clk 0:00:04]}  Rg1 {[%clk 0:00:04]} 67. g4 {[%clk 0:00:04]}  Nf4+ {[%clk 0:00:04]} 68. Kg5 {[%clk 0:00:04]}  Ne6+ {[%clk 0:00:04]} 69. Kf6 {[%clk 0:00:05]}  Kd5 {[%clk 0:00:05]} 70. Rh5 {[%clk 0:00:04]}  Nf4 {[%clk 0:00:04]} 71. Rg5 {[%clk 0:00:04]}  Nh3 {[%clk 0:00:04]} 72. Rg8 {[%clk 0:00:04]}  Ke4 {[%clk 0:00:04]} 73. Nd6+ {[%clk 0:00:03]}  Kf4 {[%clk 0:00:04]} 74. Nf7 {[%clk 0:00:03]}  Rxg4 {[%clk 0:00:03]} 75. Ra8 {[%clk 0:00:03]}  Rg3 {[%clk 0:00:02]} 76. Ra4+ {[%clk 0:00:03]}  Kf3 {[%clk 0:00:02]} 77. Ne5+ {[%clk 0:00:04]}  Kg2 {[%clk 0:00:03]} 78. Ra2+ {[%clk 0:00:04]}  Kg1 {[%clk 0:00:03]} 79. Ra1+ {[%clk 0:00:04]}  Kg2 {[%clk 0:00:03]} 80. Kf5 {[%clk 0:00:04]}  Re3 {[%clk 0:00:02]} 81. Ra2+ {[%clk 0:00:04]}  Kg3 {[%clk 0:00:03]} 82. Ng6 {[%clk 0:00:04]}  Nf2 {[%clk 0:00:03]} 83. Kg5 {[%clk 0:00:02]}  Rf3 {[%clk 0:00:02]} 84. Ra4 {[%clk 0:00:02]}  Nh3+ {[%clk 0:00:02]} 85. Kh5 {[%clk 0:00:02]}  Nf4+ {[%clk 0:00:03]} 86. Nxf4 {[%clk 0:00:02]}  Rxf4 {[%clk 0:00:04]} 87. Rxf4 {[%clk 0:00:02]}  Kxf4 {[%clk 0:00:05]} 1/2-1/2


[Site "https://www.chess.com"]

[Event "Titled Tuesday Blitz June 8 2021"]
[White "Costachi, Mihnea"]
[Black "Garcia Ramos, Daniel"]
[WhiteFideId "1217518"]
[BlackFideId "32010311"]
[WhiteElo "2479"]
[BlackElo "2321"]
[Result "0-1"]
[Round "07"]
[TimeControl "180+1"]
[Date "2021.06.08"]
[WhiteClock "0:00:40"]
[BlackClock "0:01:32"]

1. d4 {[%clk 0:03:00]}  d5 {[%clk 0:02:51]} 2. c4 {[%clk 0:03:01]}  c6 {[%clk 0:02:51]} 3. Nf3 {[%clk 0:03:00]}  Nf6 {[%clk 0:02:51]} 4. Nc3 {[%clk 0:03:01]}  e6 {[%clk 0:02:52]} 5. Bg5 {[%clk 0:03:00]}  h6 {[%clk 0:02:51]} 6. Bxf6 {[%clk 0:02:59]}  Qxf6 {[%clk 0:02:52]} 7. e3 {[%clk 0:03:00]}  Nd7 {[%clk 0:02:49]} 8. Rc1 {[%clk 0:03:00]}  g6 {[%clk 0:02:49]} 9. Bd3 {[%clk 0:03:01]}  Bg7 {[%clk 0:02:48]} 10. O-O {[%clk 0:02:58]}  O-O {[%clk 0:02:48]} 11. e4 {[%clk 0:02:57]}  dxc4 {[%clk 0:02:44]} 12. Bxc4 {[%clk 0:02:56]}  e5 {[%clk 0:02:45]} 13. d5 {[%clk 0:02:55]}  Nb6 {[%clk 0:02:45]} 14. Be2 {[%clk 0:02:53]}  cxd5 {[%clk 0:02:42]} 15. exd5 {[%clk 0:02:51]}  Bf5 {[%clk 0:02:38]} 16. Qb3 {[%clk 0:02:49]}  Rfd8 {[%clk 0:02:38]} 17. Rfd1 {[%clk 0:02:49]}  e4 {[%clk 0:02:17]} 18. Nd4 {[%clk 0:02:47]}  Qe5 {[%clk 0:02:17]} 19. Nxf5 {[%clk 0:02:44]}  Qxf5 {[%clk 0:02:18]} 20. d6 {[%clk 0:02:38]}  Be5 {[%clk 0:02:07]} 21. Nb5 {[%clk 0:02:32]}  Rac8 {[%clk 0:01:59]} 22. Nxa7 {[%clk 0:01:05]}  Rxc1 {[%clk 0:01:53]} 23. Rxc1 {[%clk 0:01:06]}  Qf4 {[%clk 0:01:52]} 24. g3 {[%clk 0:00:43]}  Qxc1+ {[%clk 0:01:51]} 25. Kg2 {[%clk 0:00:44]}  Rxd6 {[%clk 0:01:49]} 26. Qb5 {[%clk 0:00:44]}  Bd4 {[%clk 0:01:42]} 27. Qe8+ {[%clk 0:00:43]}  Kg7 {[%clk 0:01:41]} 28. Qxe4 {[%clk 0:00:42]}  Qe1 {[%clk 0:01:41]} 29. Qf4 {[%clk 0:00:40]}  Qxe2 {[%clk 0:01:34]} 30. Qxd6 {[%clk 0:00:39]}  Qxf2+ {[%clk 0:01:34]} 31. Kh3 {[%clk 0:00:40]}  Qf1+ {[%clk 0:01:33]} 32. Kh4 {[%clk 0:00:40]}  Bf6+ {[%clk 0:01:32]} 33. Kg4 {[%clk 0:00:40]}  h5# {[%clk 0:01:32]} 0-1


[Site "https://www.chess.com"]

[Event "Titled Tuesday Blitz June 8 2021"]
[White "Csonka, Balazs"]
[Black "Guo, Arthur"]
[WhiteFideId "742910"]
[BlackFideId "30903114"]
[WhiteElo "2635"]
[BlackElo "2814"]
[Result "1-0"]
[Round "07"]
[TimeControl "180+1"]
[Date "2021.06.08"]
[WhiteClock "0:00:07"]
[BlackClock "0:00:16"]

1. e4 {[%clk 0:03:00]}  c5 {[%clk 0:02:58]} 2. Nf3 {[%clk 0:03:00]}  d6 {[%clk 0:02:59]} 3. Bb5+ {[%clk 0:02:59]}  Nd7 {[%clk 0:02:58]} 4. O-O {[%clk 0:02:59]}  Nf6 {[%clk 0:02:59]} 5. Re1 {[%clk 0:02:59]}  a6 {[%clk 0:02:58]} 6. Bf1 {[%clk 0:02:59]}  b6 {[%clk 0:02:59]} 7. d4 {[%clk 0:02:57]}  cxd4 {[%clk 0:03:00]} 8. Nxd4 {[%clk 0:02:58]}  Bb7 {[%clk 0:03:00]} 9. c4 {[%clk 0:02:58]}  e6 {[%clk 0:02:58]} 10. Nc3 {[%clk 0:02:57]}  Rc8 {[%clk 0:02:58]} 11. b3 {[%clk 0:02:45]}  b5 {[%clk 0:02:52]} 12. Bb2 {[%clk 0:02:39]}  b4 {[%clk 0:02:51]} 13. Nd5 {[%clk 0:02:36]}  Nc5 {[%clk 0:02:20]} 14. Nxf6+ {[%clk 0:01:50]}  gxf6 {[%clk 0:02:21]} 15. Qh5 {[%clk 0:01:16]}  Be7 {[%clk 0:01:54]} 16. g3 {[%clk 0:01:11]}  Qd7 {[%clk 0:01:10]} 17. Bh3 {[%clk 0:01:08]}  Bf8 {[%clk 0:01:00]} 18. Rad1 {[%clk 0:01:00]}  Bg7 {[%clk 0:00:51]} 19. f3 {[%clk 0:00:44]}  O-O {[%clk 0:00:48]} 20. Nf5 {[%clk 0:00:39]}  exf5 {[%clk 0:00:30]} 21. Bxf5 {[%clk 0:00:40]}  Qxf5 {[%clk 0:00:31]} 22. Qxf5 {[%clk 0:00:39]}  Rce8 {[%clk 0:00:28]} 23. Rxd6 {[%clk 0:00:34]}  Ne6 {[%clk 0:00:19]} 24. Bxf6 {[%clk 0:00:27]}  Bc8 {[%clk 0:00:17]} 25. Bxg7 {[%clk 0:00:24]}  Kxg7 {[%clk 0:00:16]} 26. Red1 {[%clk 0:00:20]}  Re7 {[%clk 0:00:15]} 27. Qa5 {[%clk 0:00:17]}  Rb7 {[%clk 0:00:11]} 28. Qe5+ {[%clk 0:00:16]}  Kg8 {[%clk 0:00:09]} 29. h4 {[%clk 0:00:14]}  Re7 {[%clk 0:00:08]} 30. Qa5 {[%clk 0:00:12]}  Rb7 {[%clk 0:00:07]} 31. h5 {[%clk 0:00:13]}  h6 {[%clk 0:00:07]} 32. f4 {[%clk 0:00:13]}  Re7 {[%clk 0:00:06]} 33. Qxb4 {[%clk 0:00:12]}  Ng7 {[%clk 0:00:07]} 34. Rd8 {[%clk 0:00:11]}  Ree8 {[%clk 0:00:07]} 35. Rxe8 {[%clk 0:00:10]}  Rxe8 {[%clk 0:00:08]} 36. e5 {[%clk 0:00:09]}  Bg4 {[%clk 0:00:07]} 37. Rd6 {[%clk 0:00:08]}  Ne6 {[%clk 0:00:08]} 38. Rxa6 {[%clk 0:00:06]}  Bxh5 {[%clk 0:00:07]} 39. Rxe6 {[%clk 0:00:06]}  Rxe6 {[%clk 0:00:06]} 40. a4 {[%clk 0:00:05]}  Bg4 {[%clk 0:00:06]} 41. a5 {[%clk 0:00:06]}  Bf3 {[%clk 0:00:06]} 42. Kf2 {[%clk 0:00:05]}  Be4 {[%clk 0:00:05]} 43. Ke3 {[%clk 0:00:05]}  Bc6 {[%clk 0:00:06]} 44. a6 {[%clk 0:00:05]}  Kg7 {[%clk 0:00:06]} 45. a7 {[%clk 0:00:05]}  Re8 {[%clk 0:00:06]} 46. Qb6 {[%clk 0:00:04]}  Ba8 {[%clk 0:00:06]} 47. Qf6+ {[%clk 0:00:05]}  Kg8 {[%clk 0:00:06]} 48. Qxh6 {[%clk 0:00:05]}  Rc8 {[%clk 0:00:06]} 49. Qg5+ {[%clk 0:00:05]}  Kf8 {[%clk 0:00:07]} 50. Qh6+ {[%clk 0:00:05]}  Kg8 {[%clk 0:00:06]} 51. Qd6 {[%clk 0:00:05]}  Re8 {[%clk 0:00:06]} 52. f5 {[%clk 0:00:05]}  Kg7 {[%clk 0:00:06]} 53. Kf4 {[%clk 0:00:06]}  Rh8 {[%clk 0:00:05]} 54. Qf6+ {[%clk 0:00:05]}  Kg8 {[%clk 0:00:06]} 55. Qxh8+ {[%clk 0:00:05]}  Kxh8 {[%clk 0:00:06]} 56. e6 {[%clk 0:00:06]}  fxe6 {[%clk 0:00:05]} 57. fxe6 {[%clk 0:00:07]}  Kg7 {[%clk 0:00:06]} 58. Ke5 {[%clk 0:00:07]}  Kf8 {[%clk 0:00:06]} 59. Kd6 {[%clk 0:00:08]}  Ke8 {[%clk 0:00:07]} 60. g4 {[%clk 0:00:08]}  Be4 {[%clk 0:00:07]} 61. g5 {[%clk 0:00:08]}  Kf8 {[%clk 0:00:08]} 62. b4 {[%clk 0:00:09]}  Kg7 {[%clk 0:00:08]} 63. b5 {[%clk 0:00:09]}  Kg6 {[%clk 0:00:09]} 64. e7 {[%clk 0:00:09]}  Kf7 {[%clk 0:00:09]} 65. c5 {[%clk 0:00:08]}  Bd3 {[%clk 0:00:09]} 66. b6 {[%clk 0:00:08]}  Bb5 {[%clk 0:00:09]} 67. a8=Q {[%clk 0:00:08]}  Be8 {[%clk 0:00:10]} 68. Qxe8+ {[%clk 0:00:07]}  Kxe8 {[%clk 0:00:10]} 69. b7 {[%clk 0:00:07]}  Kf7 {[%clk 0:00:10]} 70. b8=Q {[%clk 0:00:08]}  Kg6 {[%clk 0:00:11]} 71. Qg8+ {[%clk 0:00:06]}  Kf5 {[%clk 0:00:12]} 72. e8=Q {[%clk 0:00:06]}  Kg4 {[%clk 0:00:12]} 73. c6 {[%clk 0:00:06]}  Kf4 {[%clk 0:00:13]} 74. c7 {[%clk 0:00:07]}  Kg4 {[%clk 0:00:14]} 75. c8=Q+ {[%clk 0:00:07]}  Kf4 {[%clk 0:00:15]} 76. Qce6 {[%clk 0:00:07]}  Kg3 {[%clk 0:00:16]} 77. g6 {[%clk 0:00:07]}  Kf4 {[%clk 0:00:16]} 78. Qgf7+ {[%clk 0:00:07]}  Kg3 {[%clk 0:00:16]} 79. g7 {[%clk 0:00:08]}  Kh4 {[%clk 0:00:16]} 80. Qh8+ {[%clk 0:00:07]}  Kg5 {[%clk 0:00:16]} 81. g8=Q# {[%clk 0:00:07]} 1-0


[Site "https://www.chess.com"]

[Event "Titled Tuesday Blitz June 8 2021"]
[White "Dang, Hoang Son"]
[Black "Jones, Gawain C B"]
[WhiteFideId "12402435"]
[BlackFideId "409561"]
[WhiteElo "2248"]
[BlackElo "2657"]
[Result "0-1"]
[Round "07"]
[TimeControl "180+1"]
[Date "2021.06.08"]
[WhiteClock "0:00:56"]
[BlackClock "0:01:02"]

1. d4 {[%clk 0:03:00]}  Nf6 {[%clk 0:02:59]} 2. c4 {[%clk 0:03:00]}  g6 {[%clk 0:02:59]} 3. Nf3 {[%clk 0:03:00]}  Bg7 {[%clk 0:02:59]} 4. g3 {[%clk 0:03:01]}  O-O {[%clk 0:02:59]} 5. Bg2 {[%clk 0:03:02]}  c5 {[%clk 0:02:59]} 6. O-O {[%clk 0:03:03]}  d6 {[%clk 0:02:59]} 7. d5 {[%clk 0:02:59]}  b5 {[%clk 0:02:59]} 8. cxb5 {[%clk 0:02:56]}  a6 {[%clk 0:02:59]} 9. bxa6 {[%clk 0:02:56]}  Nxa6 {[%clk 0:02:59]} 10. Nc3 {[%clk 0:02:57]}  Bf5 {[%clk 0:02:59]} 11. Nd2 {[%clk 0:02:55]}  Nb4 {[%clk 0:02:58]} 12. e4 {[%clk 0:02:55]}  Bg4 {[%clk 0:02:57]} 13. f3 {[%clk 0:02:53]}  Bc8 {[%clk 0:02:57]} 14. a3 {[%clk 0:02:42]}  Nd3 {[%clk 0:02:57]} 15. Nc4 {[%clk 0:02:42]}  Nxc1 {[%clk 0:02:56]} 16. Rxc1 {[%clk 0:02:43]}  Ba6 {[%clk 0:02:56]} 17. Nb1 {[%clk 0:02:36]}  Nd7 {[%clk 0:02:54]} 18. Nbd2 {[%clk 0:02:30]}  Ne5 {[%clk 0:02:53]} 19. Qc2 {[%clk 0:02:25]}  Nxc4 {[%clk 0:02:51]} 20. Nxc4 {[%clk 0:02:25]}  Bxc4 {[%clk 0:02:51]} 21. Qxc4 {[%clk 0:02:26]}  Bxb2 {[%clk 0:02:51]} 22. Rc2 {[%clk 0:02:23]}  Bd4+ {[%clk 0:02:51]} 23. Kh1 {[%clk 0:02:23]}  Rxa3 {[%clk 0:02:52]} 24. f4 {[%clk 0:02:22]}  Qa5 {[%clk 0:02:28]} 25. e5 {[%clk 0:02:10]}  Rb8 {[%clk 0:02:16]} 26. Qe2 {[%clk 0:01:58]}  Re3 {[%clk 0:02:14]} 27. Qg4 {[%clk 0:01:54]}  dxe5 {[%clk 0:02:11]} 28. f5 {[%clk 0:01:53]}  Re1 {[%clk 0:02:07]} 29. Rc1 {[%clk 0:01:47]}  Rxc1 {[%clk 0:02:02]} 30. Rxc1 {[%clk 0:01:48]}  Rb2 {[%clk 0:01:49]} 31. fxg6 {[%clk 0:01:27]}  hxg6 {[%clk 0:01:49]} 32. Rf1 {[%clk 0:01:27]}  Qd2 {[%clk 0:01:45]} 33. Qf3 {[%clk 0:01:27]}  f5 {[%clk 0:01:38]} 34. g4 {[%clk 0:01:19]}  e4 {[%clk 0:01:31]} 35. Qh3 {[%clk 0:01:19]}  e3 {[%clk 0:01:10]} 36. Ra1 {[%clk 0:00:56]}  Qxg2+ {[%clk 0:01:01]} 37. Qxg2 {[%clk 0:00:55]}  Rxg2 {[%clk 0:01:02]} 38. Ra8+ {[%clk 0:00:55]}  Kf7 {[%clk 0:01:02]} 39. Kxg2 {[%clk 0:00:56]}  e2 {[%clk 0:01:02]} 0-1


[Site "https://www.chess.com"]

[Event "Titled Tuesday Blitz June 8 2021"]
[White "Demchenko, Anton"]
[Black "Chasin, Nico"]
[WhiteFideId "4160258"]
[BlackFideId "30908477"]
[WhiteElo "2593"]
[BlackElo "2135"]
[Result "1/2-1/2"]
[Round "07"]
[TimeControl "180+1"]
[Date "2021.06.08"]
[WhiteClock "0:00:12"]
[BlackClock "0:00:12"]

1. Nf3 {[%clk 0:02:59]}  Nf6 {[%clk 0:02:59]} 2. g3 {[%clk 0:02:59]}  d5 {[%clk 0:02:58]} 3. Bg2 {[%clk 0:03:00]}  Bg4 {[%clk 0:02:58]} 4. O-O {[%clk 0:02:59]}  Nbd7 {[%clk 0:02:58]} 5. d3 {[%clk 0:02:59]}  e5 {[%clk 0:02:58]} 6. h3 {[%clk 0:02:58]}  Bh5 {[%clk 0:02:58]} 7. c4 {[%clk 0:02:57]}  c6 {[%clk 0:02:55]} 8. cxd5 {[%clk 0:02:55]}  cxd5 {[%clk 0:02:56]} 9. Nc3 {[%clk 0:02:54]}  d4 {[%clk 0:02:55]} 10. Nb1 {[%clk 0:02:45]}  Bd6 {[%clk 0:02:54]} 11. Nbd2 {[%clk 0:02:42]}  O-O {[%clk 0:02:53]} 12. Nh4 {[%clk 0:02:41]}  Rb8 {[%clk 0:02:42]} 13. Nc4 {[%clk 0:02:30]}  Bc7 {[%clk 0:02:41]} 14. a4 {[%clk 0:02:30]}  Nc5 {[%clk 0:02:18]} 15. Bd2 {[%clk 0:02:26]}  Nxd3 {[%clk 0:01:49]} 16. g4 {[%clk 0:02:13]}  Nxg4 {[%clk 0:01:49]} 17. hxg4 {[%clk 0:02:13]}  Bxg4 {[%clk 0:01:49]} 18. Nf3 {[%clk 0:02:09]}  e4 {[%clk 0:01:44]} 19. Ng5 {[%clk 0:01:55]}  e3 {[%clk 0:01:16]} 20. Nxe3 {[%clk 0:01:14]}  dxe3 {[%clk 0:01:10]} 21. Bxe3 {[%clk 0:01:15]}  Nf4 {[%clk 0:00:59]} 22. Bxf4 {[%clk 0:01:11]}  Bxf4 {[%clk 0:00:58]} 23. Qxd8 {[%clk 0:01:11]}  Rfxd8 {[%clk 0:00:58]} 24. Nf3 {[%clk 0:01:12]}  Rbc8 {[%clk 0:00:56]} 25. e3 {[%clk 0:01:09]}  Bd6 {[%clk 0:00:51]} 26. Nd4 {[%clk 0:01:08]}  Rd7 {[%clk 0:00:45]} 27. Rfc1 {[%clk 0:01:07]}  Rxc1+ {[%clk 0:00:45]} 28. Rxc1 {[%clk 0:01:06]}  h5 {[%clk 0:00:41]} 29. Nb5 {[%clk 0:00:57]}  Be5 {[%clk 0:00:37]} 30. Nxa7 {[%clk 0:00:50]}  Bxb2 {[%clk 0:00:25]} 31. Rb1 {[%clk 0:00:50]}  Rd1+ {[%clk 0:00:20]} 32. Rxd1 {[%clk 0:00:48]}  Bxd1 {[%clk 0:00:21]} 33. a5 {[%clk 0:00:43]}  Bc3 {[%clk 0:00:20]} 34. Bxb7 {[%clk 0:00:43]}  Bxa5 {[%clk 0:00:20]} 35. Bd5 {[%clk 0:00:43]}  Bc7 {[%clk 0:00:20]} 36. Nc6 {[%clk 0:00:43]}  Ba4 {[%clk 0:00:20]} 37. Kg2 {[%clk 0:00:42]}  Kf8 {[%clk 0:00:20]} 38. f4 {[%clk 0:00:42]}  Bd1 {[%clk 0:00:20]} 39. Kg3 {[%clk 0:00:42]}  g6 {[%clk 0:00:19]} 40. Kg2 {[%clk 0:00:39]}  Kg7 {[%clk 0:00:19]} 41. Bf3 {[%clk 0:00:29]}  Bb3 {[%clk 0:00:18]} 42. Nb4 {[%clk 0:00:28]}  Be6 {[%clk 0:00:18]} 43. Nd5 {[%clk 0:00:28]}  Bd8 {[%clk 0:00:19]} 44. Nc3 {[%clk 0:00:24]}  Bc4 {[%clk 0:00:19]} 45. Bd5 {[%clk 0:00:23]}  Bd3 {[%clk 0:00:19]} 46. Be4 {[%clk 0:00:23]}  Ba6 {[%clk 0:00:17]} 47. Kf3 {[%clk 0:00:23]}  Bb6 {[%clk 0:00:18]} 48. Nd5 {[%clk 0:00:23]}  Bc5 {[%clk 0:00:18]} 49. Nc7 {[%clk 0:00:23]}  Bc4 {[%clk 0:00:18]} 50. Nd5 {[%clk 0:00:23]}  f5 {[%clk 0:00:18]} 51. Nc3 {[%clk 0:00:16]}  fxe4+ {[%clk 0:00:18]} 52. Kxe4 {[%clk 0:00:17]}  Be7 {[%clk 0:00:19]} 53. Kf3 {[%clk 0:00:18]}  Be6 {[%clk 0:00:19]} 54. e4 {[%clk 0:00:18]}  Bg4+ {[%clk 0:00:20]} 55. Kg3 {[%clk 0:00:18]}  Bd7 {[%clk 0:00:19]} 56. Nd5 {[%clk 0:00:18]}  h4+ {[%clk 0:00:20]} 57. Kf3 {[%clk 0:00:18]}  Bd8 {[%clk 0:00:21]} 58. Ne3 {[%clk 0:00:15]}  Kh6 {[%clk 0:00:21]} 59. Nc4 {[%clk 0:00:14]}  Bf6 {[%clk 0:00:20]} 60. Nd6 {[%clk 0:00:14]}  Be6 {[%clk 0:00:20]} 61. f5 {[%clk 0:00:14]}  Be7 {[%clk 0:00:17]} 62. Nb5 {[%clk 0:00:06]}  gxf5 {[%clk 0:00:17]} 63. exf5 {[%clk 0:00:07]}  Bxf5 {[%clk 0:00:18]} 64. Nd4 {[%clk 0:00:06]}  Kg5 {[%clk 0:00:18]} 65. Nxf5 {[%clk 0:00:05]}  Kxf5 {[%clk 0:00:08]} 66. Kg2 {[%clk 0:00:06]}  Bg5 {[%clk 0:00:05]} 67. Kh1 {[%clk 0:00:06]}  Bf6 {[%clk 0:00:06]} 68. Kh2 {[%clk 0:00:07]}  Bg5 {[%clk 0:00:07]} 69. Kg2 {[%clk 0:00:08]}  Bf6 {[%clk 0:00:08]} 70. Kh3 {[%clk 0:00:08]}  Bg5 {[%clk 0:00:08]} 71. Kh2 {[%clk 0:00:09]}  Bf6 {[%clk 0:00:09]} 72. Kh1 {[%clk 0:00:10]}  Bg5 {[%clk 0:00:10]} 73. Kh2 {[%clk 0:00:11]}  Bf6 {[%clk 0:00:11]} 74. Kh1 {[%clk 0:00:11]}  Bg5 {[%clk 0:00:12]} 75. Kh2 {[%clk 0:00:12]} 1/2-1/2


[Site "https://www.chess.com"]